bitfinex/quotes_BTCUSD_20250617
["timestamp","ask_amount","ask_price","bid_price","bid_amount"]
[1750133498159,0.19498589,107700.0,107690.0,0.23713291]
[1750133501202,0.19498589,107700.0,107690.0,0.24626344]
[1750133504797,0.19498589,107700.0,107690.0,0.23713291]
[1750133507045,0.19498589,107700.0,107690.0,0.24641882]
[1750133507729,0.19498589,107700.0,107690.0,0.23713291]
[1750133513154,0.00928444,107700.0,107690.0,0.45999274]
[1750133513389,0.00928444,107700.0,107690.0,0.63245274]
[1750133513619,0.22283931,107700.0,107690.0,0.59531117]
[1750133513845,0.21355495,107700.0,107690.0,0.61388273]
[1750133514126,0.21355495,107700.0,107690.0,0.62316829]
[1750133514565,0.02785393,107700.0,107690.0,0.63245359]
[1750133514998,0.01856906,107700.0,107690.0,0.63245359]
[1750133515215,0.02785376,107700.0,107690.0,0.63245359]
[1750133515452,0.02785376,107700.0,107690.0,0.63445359]
[1750133515671,0.01856897,107700.0,107690.0,0.63445359]
[1750133515886,0.02785367,107700.0,107690.0,0.63445359]
[1750133516102,0.03713854,107700.0,107690.0,0.63545359]
[1750133516534,0.03713854,107700.0,107690.0,0.69085576]
[1750133516758,0.02785367,107700.0,107690.0,0.69085576]
[1750133517607,0.03713854,107700.0,107690.0,0.69085576]
[1750133518482,0.01856897,107700.0,107690.0,0.69085576]
[1750133518905,0.02785367,107700.0,107690.0,0.69085576]
[1750133519483,0.19495109,107720.0,107710.0,0.23655154]
[1750133519710,0.00928263,107720.0,107710.0,0.60315047]
[1750133519933,0.01856535,107720.0,107710.0,0.68787384]
[1750133520412,0.02784816,107720.0,107710.0,0.68787384]
[1750133520876,0.01128212,107730.0,107720.0,0.24631548]
[1750133521110,0.01128212,107730.0,107720.0,0.30175747]
[1750133521111,0.02056389,107730.0,107720.0,0.30175747]
[1750133521338,0.01128186,107730.0,107720.0,0.50663273]
[1750133521608,0.002,107730.0,107720.0,0.5474325]
[1750133521832,0.002,107730.0,107720.0,0.60282719]
[1750133522094,0.002,107730.0,107720.0,0.8874325]
[1750133522313,0.002,107730.0,107720.0,1.16638957]
[1750133522532,0.002,107730.0,107720.0,1.33214776]
[1750133522746,0.002,107730.0,107720.0,1.40589798]
[1750133522973,0.002,107730.0,107720.0,1.47589798]
[1750133523182,0.002,107730.0,107720.0,1.47689798]
[1750133523402,0.002,107730.0,107720.0,1.43705798]
[1750133523685,0.002,107730.0,107720.0,1.42458272]
[1750133523896,0.002,107730.0,107720.0,1.42758272]
[1750133524117,0.002,107730.0,107720.0,1.63245798]
[1750133525556,0.002,107730.0,107720.0,1.66332998]
[1750133525771,0.002,107730.0,107720.0,1.58957976]
[1750133526428,0.002,107730.0,107720.0,1.23501537]
[1750133526654,0.002,107730.0,107720.0,1.64476589]
[1750133527018,0.002,107730.0,107720.0,0.99261537]
[1750133527250,0.002,107730.0,107720.0,1.59403215]
[1750133527485,0.002,107730.0,107720.0,1.67190415]
[1750133528596,0.002,107730.0,107720.0,1.47958415]
[1750133528823,0.002,107730.0,107720.0,1.67206415]
[1750133532435,0.002,107730.0,107720.0,1.86687802]
[1750133533391,0.002,107730.0,107720.0,1.95516909]
[1750133533622,0.02232398,107750.0,107740.0,1.51502635]
[1750133533869,0.02232398,107750.0,107740.0,1.21140684]
[1750133534093,0.02232398,107750.0,107740.0,0.66295534]
[1750133534094,0.05944547,107750.0,107740.0,0.66295534]
[1750133534335,0.20419484,107740.0,107730.0,0.23667526]
[1750133534560,0.20419484,107740.0,107730.0,0.56898693]
[1750133534819,0.20424203,107740.0,107730.0,0.16918]
[1750133535062,0.20424203,107740.0,107730.0,0.180751]
[1750133535751,0.1856493,107730.0,107720.0,0.44370801]
[1750133536247,0.19493167,107730.0,107720.0,0.57126512]
[1750133536705,0.19493167,107730.0,107720.0,0.58054836]
[1750133536932,0.01856449,107730.0,107720.0,0.60219423]
[1750133537401,0.01856449,107730.0,107720.0,0.61147695]
[1750133537624,0.01856449,107730.0,107720.0,0.45855695]
[1750133537852,0.01856449,107730.0,107720.0,0.58667423]
[1750133538084,0.02784695,107730.0,107720.0,0.58667423]
[1750133538314,0.20421379,107730.0,107720.0,0.005]
[1750133538551,0.23551379,107730.0,107720.0,0.008]
[1750133538788,0.23551379,107730.0,107720.0,0.161]
[1750133539243,0.23551379,107730.0,107720.0,0.16108]
[1750133539751,0.0316,107710.0,107700.0,0.00168956]
[1750133539982,0.87987038,107710.0,107700.0,0.00168956]
[1750133540217,0.87696856,107710.0,107700.0,0.00168956]
[1750133540445,1.07012856,107710.0,107700.0,0.00168956]
[1750133541607,1.07008856,107710.0,107700.0,0.00168956]
[1750133541855,0.6720933,107710.0,107700.0,0.00168956]
[1750133542109,0.6780933,107710.0,107700.0,0.00168956]
[1750133542365,0.8742133,107710.0,107700.0,0.00168956]
[1750133542875,0.6810933,107710.0,107700.0,0.00168956]
[1750133543648,0.8741333,107710.0,107700.0,0.00168956]
[1750133543876,0.6810933,107710.0,107700.0,0.00168956]
[1750133544118,0.8741333,107710.0,107700.0,0.00168956]
[1750133544589,0.6652933,107710.0,107700.0,0.00168956]
[1750133544837,0.8425333,107710.0,107700.0,0.00168956]
[1750133545510,0.25317154,107710.0,107700.0,0.00168956]
[1750133547518,0.02756724,107710.0,107700.0,0.44590482]
[1750133547740,0.23181913,107710.0,107700.0,0.47162038]
[1750133548403,0.23210331,107710.0,107700.0,0.480905]
[1750133548668,0.22481982,107710.0,107700.0,0.480905]
[1750133548881,0.21653607,107710.0,107700.0,0.480905]
[1750133550188,0.21653607,107710.0,107700.0,0.47162038]
[1750133550189,0.20725206,107710.0,107700.0,0.47162038]
[1750133550902,0.20725206,107710.0,107700.0,0.46233568]
[1750133551116,0.19796796,107710.0,107700.0,0.46233568]
[1750133551332,0.18868378,107710.0,107700.0,0.00168956]
[1750133551556,0.42806061,107710.0,107700.0,0.00168956]
[1750133551790,0.5214008,107710.0,107700.0,0.00168956]
[1750133552005,0.8614008,107710.0,107700.0,0.00168956]
[1750133552226,0.87594165,107710.0,107700.0,0.00168956]
[1750133552482,0.97209087,107710.0,107700.0,0.00168956]
[1750133552702,0.87594165,107710.0,107700.0,0.00168956]
[1750133554032,0.87494165,107710.0,107700.0,0.00168956]
[1750133554266,0.87594165,107710.0,107700.0,0.00168956]
[1750133554481,0.88094165,107710.0,107700.0,0.00168956]
[1750133554692,0.87794165,107710.0,107700.0,0.00168956]
[1750133554906,0.92433362,107710.0,107700.0,0.00168956]
[1750133555161,0.93633362,107710.0,107700.0,0.00168956]
[1750133556006,1.03248284,107710.0,107700.0,0.00168956]
[1750133560013,1.06037684,107710.0,107700.0,0.00168956]
[1750133560255,1.25341684,107710.0,107700.0,0.00168956]
[1750133560467,1.06037684,107710.0,107700.0,0.00168956]
[1750133560700,1.25337684,107710.0,107700.0,0.00168956]
[1750133562449,0.99710961,107710.0,107700.0,0.00168956]
[1750133562665,1.15742762,107710.0,107700.0,0.00168956]
[1750133564808,0.90116039,107710.0,107700.0,0.00168956]
[1750133565016,1.15742762,107710.0,107700.0,0.00168956]
[1750133568799,1.15746762,107710.0,107700.0,0.00168956]
[1750133570180,1.14106762,107710.0,107700.0,0.00168956]
[1750133570391,1.25281684,107710.0,107700.0,0.00168956]
[1750133572197,0.99654961,107710.0,107700.0,0.00168956]
[1750133572403,1.25281684,107710.0,107700.0,0.00168956]
[1750133573288,1.05957684,107710.0,107700.0,0.00168956]
[1750133573506,1.14098762,107710.0,107700.0,0.00168956]
[1750133573713,0.88472039,107710.0,107700.0,0.00168956]
[1750133574555,0.69156039,107710.0,107700.0,0.00168956]
[1750133574935,0.88476039,107710.0,107700.0,0.00168956]
[1750133575150,1.14102762,107710.0,107700.0,0.00168956]
[1750133576217,0.67636039,107710.0,107700.0,0.01768956]
[1750133576365,0.84166639,107710.0,107700.0,0.00168956]
[1750133577006,1.04664013,107710.0,107700.0,0.00168956]
[1750133577222,1.06304013,107710.0,107700.0,0.00168956]
[1750133577829,1.04664013,107710.0,107700.0,0.00168956]
[1750133578292,0.85344013,107710.0,107700.0,0.00168956]
[1750133578495,1.04656013,107710.0,107700.0,0.00168956]
[1750133578927,0.85344013,107710.0,107700.0,0.00168956]
[1750133579153,0.84158639,107710.0,107700.0,0.03408956]
[1750133581004,1.04656013,107710.0,107700.0,0.01768956]
[1750133581216,1.04656013,107710.0,107700.0,0.00168956]
[1750133591332,1.17430935,107710.0,107700.0,0.00168956]
[1750133591543,1.07816013,107710.0,107700.0,0.00168956]
[1750133592782,1.04620013,107710.0,107700.0,0.00168956]
[1750133592914,1.04600013,107710.0,107700.0,0.00168956]
[1750133593331,0.85344013,107710.0,107700.0,0.00168956]
[1750133593536,0.84102639,107710.0,107700.0,0.03408956]
[1750133593742,1.04600013,107710.0,107700.0,0.03408956]
[1750133594412,0.89332013,107710.0,107700.0,0.03408956]
[1750133594579,1.04600013,107710.0,107700.0,0.03408956]
[1750133595192,1.04600013,107710.0,107700.0,0.01798956]
[1750133595593,1.04600013,107710.0,107700.0,0.03348956]
[1750133596855,1.04592013,107710.0,107700.0,0.03348956]
[1750133602598,1.04592013,107710.0,107700.0,0.01798956]
[1750133602814,1.06182013,107710.0,107700.0,0.00168956]
[1750133604785,1.0771936,107710.0,107700.0,0.00168956]
[1750133605279,1.06182013,107710.0,107700.0,0.00168956]
[1750133605499,1.04592013,107710.0,107700.0,0.00168956]
[1750133605752,1.04580013,107710.0,107700.0,0.01828956]
[1750133605979,1.04580013,107710.0,107700.0,0.03378956]
[1750133606863,1.04580013,107710.0,107700.0,0.01828956]
[1750133607083,1.04580013,107710.0,107700.0,0.00168956]
[1750133607317,1.14194935,107710.0,107700.0,0.00168956]
[1750133607555,1.15834935,107710.0,107700.0,0.00168956]
[1750133608224,1.06220013,107710.0,107700.0,0.00168956]
[1750133615916,1.04580013,107710.0,107700.0,0.01768956]
[1750133618976,1.04580013,107710.0,107700.0,0.03398956]
[1750133619526,0.84082639,107710.0,107700.0,0.03398956]
[1750133620378,1.04580013,107710.0,107700.0,0.03398956]
[1750133622468,0.84082639,107710.0,107700.0,0.03398956]
[1750133622733,0.19768378,107710.0,107700.0,0.2389633]
[1750133622936,0.03056776,107710.0,107700.0,0.46180347]
[1750133623136,0.03985194,107710.0,107700.0,0.46180347]
[1750133623361,0.03056776,107710.0,107700.0,0.46180347]
[1750133623520,0.02556776,107710.0,107700.0,0.46180347]
[1750133623945,0.02856776,107710.0,107700.0,0.46180347]
[1750133624363,0.02556776,107710.0,107700.0,0.46180347]
[1750133624774,0.02656776,107710.0,107700.0,0.46180347]
[1750133624984,0.01956776,107710.0,107700.0,0.46180347]
[1750133625592,0.02885194,107710.0,107700.0,0.46180347]
[1750133625981,0.02056776,107710.0,107700.0,0.46180347]
[1750133629415,0.02985194,107710.0,107700.0,0.46180347]
[1750133630385,0.02056776,107710.0,107700.0,0.46180347]
[1750133630611,0.02056724,107710.0,107700.0,0.46180347]
[1750133630845,0.02985125,107710.0,107700.0,0.46180347]
[1750133632198,0.02056724,107710.0,107700.0,0.46180347]
[1750133632427,0.03913518,107710.0,107700.0,0.46180347]
[1750133632648,0.002,107710.0,107700.0,0.46180347]
[1750133633083,0.002,107710.0,107700.0,0.66677721]
[1750133633288,0.002,107710.0,107700.0,0.76301897]
[1750133633722,0.002,107710.0,107700.0,0.80277897]
[1750133634179,0.001,107710.0,107700.0,0.80277897]
[1750133634607,0.001,107710.0,107700.0,0.80377897]
[1750133635119,0.001,107710.0,107700.0,0.95621897]
[1750133635777,0.02784833,107720.0,107710.0,0.2441353]
[1750133635987,0.01856544,107720.0,107710.0,0.5453508]
[1750133636540,0.02784842,107720.0,107710.0,0.5453508]
[1750133636741,0.02784842,107720.0,107710.0,0.6977908]
[1750133636988,0.02056544,107720.0,107710.0,0.6977908]
[1750133637496,0.002,107720.0,107710.0,0.6977908]
[1750133637951,0.002,107720.0,107710.0,0.70704151]
[1750133638693,0.001,107720.0,107710.0,0.70704151]
[1750133639105,0.001,107720.0,107710.0,0.70804151]
[1750133639720,0.20424355,107740.0,107730.0,0.2134959]
[1750133639930,4.719e-05,107740.0,107730.0,0.6109515]
[1750133640146,4.719e-05,107740.0,107730.0,0.912167]
[1750133640395,4.719e-05,107740.0,107730.0,1.291927]
[1750133640601,4.719e-05,107740.0,107730.0,1.491927]
[1750133641209,0.00204719,107740.0,107730.0,1.491927]
[1750133642011,0.00204719,107740.0,107730.0,1.491967]
[1750133642214,0.00204719,107740.0,107730.0,1.541967]
[1750133642645,4.719e-05,107740.0,107730.0,1.541967]
[1750133642866,0.00304719,107740.0,107730.0,1.541967]
[1750133643082,0.00304719,107740.0,107730.0,1.544967]
[1750133643293,4.719e-05,107740.0,107730.0,0.94281952]
[1750133643495,4.719e-05,107740.0,107730.0,1.548967]
[1750133646397,4.719e-05,107740.0,107730.0,1.356767]
[1750133646616,4.719e-05,107740.0,107730.0,1.549247]
[1750133647002,4.719e-05,107740.0,107730.0,1.549207]
[1750133647221,4.719e-05,107740.0,107730.0,0.69681952]
[1750133647426,4.719e-05,107740.0,107730.0,1.09423326]
[1750133648047,4.719e-05,107740.0,107730.0,1.299207]
[1750133649180,4.719e-05,107740.0,107730.0,1.319207]
[1750133649612,0.00932827,107740.0,107730.0,0.90179326]
[1750133649835,0.21352302,107740.0,107730.0,0.20193167]
[1750133650050,0.40921576,107740.0,107730.0,0.007]
[1750133650280,0.21974202,107740.0,107730.0,0.1606]
[1750133650704,0.21974202,107740.0,107730.0,0.1576]
[1750133650931,0.20424202,107740.0,107730.0,0.16288246]
[1750133651146,0.20424202,107740.0,107730.0,0.17416483]
[1750133651588,0.19496077,107740.0,107730.0,0.17416483]
[1750133652241,0.18567926,107740.0,107730.0,0.1536]
[1750133652450,0.18857979,107740.0,107730.0,0.1536]
[1750133652669,0.18957979,107740.0,107730.0,0.1536]
[1750133652905,0.19057979,107740.0,107730.0,0.1536]
[1750133654099,0.19057979,107740.0,107730.0,0.16288246]
[1750133655265,0.19057979,107740.0,107730.0,0.1536]
[1750133660869,0.19057979,107740.0,107730.0,0.16288246]
[1750133662930,0.19057979,107740.0,107730.0,0.1536]
[1750133664716,0.19057979,107740.0,107730.0,0.34853176]
[1750133664894,0.19057979,107740.0,107730.0,0.35781413]
[1750133665332,0.19057979,107740.0,107730.0,0.16288246]
[1750133665555,0.19057979,107740.0,107720.0,0.42520598]
[1750133665771,0.20567979,107740.0,107730.0,0.15308]
[1750133665979,0.20277926,107740.0,107730.0,0.15308]
[1750133666396,0.19493176,107730.0,107720.0,0.21124978]
[1750133666620,0.1856493,107730.0,107720.0,0.15308]
[1750133666844,0.18855008,107730.0,107720.0,0.16236332]
[1750133667326,0.18855008,107730.0,107720.0,0.15308]
[1750133667970,0.01856569,107720.0,107710.0,0.51357885]
[1750133668209,0.02784867,107720.0,107710.0,0.66665885]
[1750133668841,0.21351582,107720.0,107710.0,0.21046796]
[1750133669055,0.21351582,107720.0,107710.0,0.37279206]
[1750133669295,0.21351582,107720.0,107710.0,0.38207607]
[1750133669499,0.21351582,107720.0,107710.0,0.38407607]
[1750133670129,0.21351582,107720.0,107710.0,0.38607607]
[1750133670339,0.21351582,107720.0,107710.0,0.39547009]
[1750133671504,0.21351582,107720.0,107710.0,0.40475393]
[1750133672651,0.21351582,107720.0,107710.0,0.47475393]
[1750133672892,0.21351582,107720.0,107710.0,0.48403768]
[1750133675155,0.21351582,107720.0,107710.0,0.68901142]
[1750133675938,0.22279914,107720.0,107710.0,0.68901142]
[1750133677057,0.0371326,107720.0,107710.0,0.70491142]
[1750133677272,0.0371326,107720.0,107710.0,0.70491082]
[1750133677708,0.1949315,107730.0,107720.0,0.19494986]
[1750133677930,0.1949315,107730.0,107720.0,0.21351581]
[1750133677931,0.20421396,107730.0,107720.0,0.21351581]
[1750133678158,0.20421396,107730.0,107720.0,0.41848964]
[1750133678387,0.20421396,107730.0,107720.0,0.19494986]
[1750133678610,0.00928306,107720.0,107710.0,0.73007859]
[1750133678825,0.00928306,107720.0,107710.0,0.72807859]
[1750133679033,0.21351599,107720.0,107710.0,0.72807962]
[1750133679735,0.21351599,107720.0,107710.0,0.74136346]
[1750133681584,0.21351599,107720.0,107710.0,0.75064721]
[1750133681783,0.22279897,107720.0,107710.0,0.75993088]
[1750133682267,0.23208229,107720.0,107710.0,0.75993088]
[1750133682536,0.02784919,107720.0,107710.0,0.75993028]
[1750133683689,0.03713243,107720.0,107710.0,0.75993028]
[1750133684987,0.00928298,107720.0,107710.0,0.75993028]
[1750133685234,0.405953,107740.0,107730.0,0.19493167]
[1750133685235,0.19496251,107740.0,107730.0,0.19493167]
[1750133685446,0.19496251,107740.0,107730.0,0.1526]
[1750133686506,0.19596251,107740.0,107730.0,0.1526]
[1750133686721,0.21216251,107740.0,107730.0,0.1526]
[1750133686945,0.22786251,107740.0,107730.0,0.1526]
[1750133687629,0.21216251,107740.0,107730.0,0.1526]
[1750133689384,0.19696251,107740.0,107730.0,0.1526]
[1750133690049,0.21349531,107730.0,107720.0,0.05537892]
[1750133690272,0.22909608,107730.0,107720.0,0.20793892]
[1750133690494,0.21981405,107730.0,107720.0,0.20793892]
[1750133690709,0.21981405,107730.0,107720.0,0.16184332]
[1750133691219,0.21981405,107730.0,107720.0,0.22650548]
[1750133691439,0.21981405,107730.0,107720.0,0.42145517]
[1750133691647,0.01856432,107730.0,107720.0,0.43073815]
[1750133691856,0.03712915,107730.0,107720.0,0.6606947]
[1750133692099,0.01856432,107730.0,107720.0,0.6606941]
[1750133692356,0.01856432,107730.0,107720.0,0.6768941]
[1750133693220,0.02784669,107730.0,107720.0,0.6768941]
[1750133693668,0.22277845,107730.0,107720.0,0.66761138]
[1750133696099,0.22277845,107730.0,107720.0,0.65832857]
[1750133696303,0.21349642,107730.0,107720.0,0.65832857]
[1750133696534,0.21349642,107730.0,107720.0,0.45335483]
[1750133696765,0.21349642,107730.0,107720.0,0.65832857]
[1750133697635,0.20421413,107730.0,107720.0,0.64904559]
[1750133697842,0.19493176,107730.0,107720.0,0.41317185]
[1750133698798,0.2021493,107730.0,107720.0,0.27885892]
[1750133700460,0.2021493,107730.0,107720.0,0.4738087]
[1750133700680,0.1856493,107730.0,107720.0,0.48309185]
[1750133700900,0.18855017,107730.0,107720.0,0.48309185]
[1750133701307,0.20228108,107740.0,107720.0,0.72323129]
[1750133701521,0.21349539,107730.0,107720.0,0.72914857]
[1750133701727,0.22071396,107730.0,107720.0,0.27885892]
[1750133702092,0.22071396,107730.0,107720.0,0.27785892]
[1750133702515,0.20421396,107730.0,107720.0,0.28714224]
[1750133702752,0.20421396,107730.0,107720.0,0.12537892]
[1750133702901,0.21991396,107730.0,107720.0,0.27785892]
[1750133703117,0.21991396,107730.0,107720.0,0.27885892]
[1750133703567,0.21991396,107730.0,107720.0,0.12637892]
[1750133703971,0.21991396,107730.0,107720.0,0.27885892]
[1750133704632,0.21991396,107730.0,107720.0,0.05637892]
[1750133704839,0.21991396,107730.0,107720.0,0.20885892]
[1750133705970,0.20421396,107730.0,107720.0,0.20885892]
[1750133706385,0.20421396,107730.0,107720.0,0.21814216]
[1750133706916,0.19493167,107730.0,107720.0,0.21814216]
[1750133707115,0.1856493,107730.0,107720.0,0.20885892]
[1750133707312,0.18855017,107730.0,107720.0,0.20885892]
[1750133708077,0.20455017,107730.0,107720.0,0.20885892]
[1750133708288,0.2016493,107730.0,107720.0,0.20885892]
[1750133708972,0.2016493,107730.0,107720.0,0.001]
[1750133708973,0.51787655,107730.0,107720.0,0.001]
[1750133709186,1.22987114,107730.0,107720.0,0.001]
[1750133710062,1.25755921,107730.0,107720.0,0.001]
[1750133710503,1.10507921,107730.0,107720.0,0.001]
[1750133710716,1.29739921,107730.0,107720.0,0.001]
[1750133710925,1.30139921,107730.0,107720.0,0.001]
[1750133712217,0.23525154,107710.0,107700.0,0.00168956]
[1750133712428,0.44022528,107710.0,107700.0,0.00168956]
[1750133713754,0.53646704,107710.0,107700.0,0.00168956]
[1750133714006,0.69094704,107710.0,107700.0,0.00168956]
[1750133714457,0.87846704,107710.0,107700.0,0.00168956]
[1750133714667,1.07078704,107710.0,107700.0,0.00168956]
[1750133714883,0.87846704,107710.0,107700.0,0.00168956]
[1750133715105,1.07078704,107710.0,107700.0,0.00168956]
[1750133715537,1.07994881,107710.0,107700.0,0.00168956]
[1750133717651,1.09448966,107710.0,107700.0,0.00168956]
[1750133717836,1.19063888,107710.0,107700.0,0.00168956]
[1750133718923,0.99831888,107710.0,107700.0,0.00168956]
[1750133719138,0.90216966,107710.0,107700.0,0.00168956]
[1750133719377,1.09448966,107710.0,107700.0,0.00168956]
[1750133720257,0.3024933,107710.0,107700.0,0.00168956]
[1750133720469,0.20625154,107710.0,107700.0,0.03198956]
[1750133722604,0.20625154,107710.0,107700.0,0.01688956]
[1750133723464,0.20625154,107710.0,107700.0,0.03238956]
[1750133725203,0.41122528,107710.0,107700.0,0.00168956]
[1750133725431,0.42732528,107710.0,107700.0,0.00168956]
[1750133725866,0.54016704,107710.0,107700.0,0.00168956]
[1750133727314,0.88016704,107710.0,107700.0,0.00168956]
[1750133732810,0.86356704,107710.0,107700.0,0.00168956]
[1750133734017,0.87966704,107710.0,107700.0,0.00168956]
[1750133734687,0.6746933,107710.0,107700.0,0.00168956]
[1750133734946,0.87966704,107710.0,107700.0,0.00168956]
[1750133738140,0.86356704,107710.0,107700.0,0.00168956]
[1750133738809,0.87916704,107710.0,107700.0,0.00168956]
[1750133739455,1.19483085,107710.0,107700.0,0.00168956]
[1750133739670,0.98985711,107710.0,107700.0,0.00168956]
[1750133739935,1.08598789,107710.0,107700.0,0.00168956]
[1750133740189,1.08538789,107710.0,107700.0,0.00168956]
[1750133740690,1.08438789,107710.0,107700.0,0.00168956]
[1750133741106,1.08638789,107710.0,107700.0,0.00168956]
[1750133741488,1.08538789,107710.0,107700.0,0.00168956]
[1750133741703,1.07038789,107710.0,107700.0,0.00168956]
[1750133741912,0.87041415,107710.0,107700.0,0.00168956]
[1750133742114,1.07338789,107710.0,107700.0,0.00168956]
[1750133742561,0.88410789,107710.0,107700.0,0.00168956]
[1750133742781,1.07638789,107710.0,107700.0,0.00168956]
[1750133743628,1.10428089,107710.0,107700.0,0.00168956]
[1750133745380,1.21543011,107710.0,107700.0,0.00168956]
[1750133746925,1.93597051,107710.0,107700.0,0.00168956]
[1750133747788,1.22259381,107710.0,107700.0,0.00168956]
[1750133747989,1.61984755,107710.0,107700.0,0.00168956]
[1750133749259,1.59758089,107710.0,107700.0,0.00168956]
[1750133750981,1.42900089,107710.0,107700.0,0.01718956]
[1750133751203,1.58148089,107710.0,107700.0,0.01718956]
[1750133752152,1.58148089,107710.0,107700.0,0.00168956]
[1750133752362,1.59648089,107710.0,107700.0,0.00168956]
[1750133753396,1.70833011,107710.0,107700.0,0.00168956]
[1750133753824,1.73059093,107710.0,107700.0,0.00168956]
[1750133757724,1.93556467,107710.0,107700.0,0.00168956]
[1750133758359,1.73059093,107710.0,107700.0,0.00168956]
[1750133758554,1.93556467,107710.0,107700.0,0.00168956]
[1750133759172,1.83941545,107710.0,107700.0,0.00168956]
[1750133761207,0.45420407,107690.0,107680.0,0.022]
[1750133761424,1.19622583,107690.0,107680.0,0.022]
[1750133761889,1.21822583,107690.0,107680.0,0.022]
[1750133762561,1.22322583,107690.0,107680.0,0.02215765]
[1750133762778,1.31937505,107690.0,107680.0,0.02215765]
[1750133764333,0.84832615,107690.0,107680.0,0.02215765]
[1750133764556,1.18832615,107690.0,107680.0,0.02215765]
[1750133764771,1.38456615,107690.0,107680.0,0.02215765]
[1750133765436,1.38256615,107690.0,107680.0,0.02215765]
[1750133766277,1.38456615,107690.0,107680.0,0.02215765]
[1750133766912,1.58953989,107690.0,107680.0,0.01286444]
[1750133767337,1.58953989,107690.0,107680.0,0.00357123]
[1750133767785,0.76386098,107660.0,107650.0,0.0356]
[1750133767994,1.05238274,107660.0,107650.0,0.03607182]
[1750133768211,1.05238274,107660.0,107650.0,0.02047182]
[1750133768409,1.06838274,107660.0,107650.0,0.02047182]
[1750133768617,1.09628974,107660.0,107650.0,0.02047182]
[1750133769248,1.12385155,107660.0,107650.0,0.02247182]
[1750133769468,1.22100077,107660.0,107650.0,0.02747182]
[1750133770825,1.23038112,107660.0,107650.0,0.02547182]
[1750133771269,1.22938112,107660.0,107650.0,0.02047182]
[1750133771492,1.22938112,107660.0,107650.0,0.02147182]
[1750133772371,1.24538112,107660.0,107650.0,0.02147182]
[1750133772589,1.22938112,107660.0,107650.0,0.02147182]
[1750133776380,1.24518112,107660.0,107650.0,0.02147182]
[1750133777269,1.02110112,107660.0,107650.0,0.02147182]
[1750133777487,0.9647519,107660.0,107650.0,0.05287182]
[1750133777704,0.89775731,107660.0,107650.0,0.05287182]
[1750133777920,0.70543731,107660.0,107650.0,0.05287182]
[1750133778140,0.32814996,107660.0,107650.0,0.05287182]
[1750133778351,0.36794996,107660.0,107650.0,0.05287182]
[1750133778568,0.70794996,107660.0,107650.0,0.05287182]
[1750133778814,0.36794996,107660.0,107650.0,0.05287182]
[1750133779032,0.70794996,107660.0,107650.0,0.05287182]
[1750133779253,0.70794996,107660.0,107650.0,0.4529221]
[1750133779254,0.2319082,107660.0,107650.0,0.4529221]
[1750133779486,0.01857638,107660.0,107650.0,0.47149986]
[1750133779693,0.2136342,107660.0,107650.0,0.47150004]
[1750133779901,0.2136342,107660.0,107650.0,0.48078888]
[1750133780536,0.21363489,107660.0,107650.0,0.24794836]
[1750133780743,0.20434683,107660.0,107650.0,0.05287182]
[1750133781170,0.20434683,107660.0,107650.0,0.05587182]
[1750133781433,0.20434683,107660.0,107650.0,0.06516118]
[1750133782243,0.20434683,107660.0,107650.0,0.05587182]
[1750133784595,0.20434683,107660.0,107650.0,0.06516118]
[1750133785098,0.20434683,107660.0,107650.0,0.05587182]
[1750133786691,0.50556233,107660.0,107650.0,0.05587182]
[1750133787213,0.30058859,107660.0,107650.0,0.05587182]
[1750133788302,0.20434683,107660.0,107650.0,0.26084556]
[1750133788737,0.20434683,107660.0,107650.0,0.05587182]
[1750133789591,0.20434683,107660.0,107650.0,0.25094845]
[1750133789802,0.19505851,107660.0,107650.0,0.27013492]
[1750133790013,0.19505851,107660.0,107650.0,0.06516118]
[1750133790233,0.19505851,107660.0,107650.0,0.05587182]
[1750133792710,0.40003225,107660.0,107650.0,0.05587182]
[1750133793605,0.19505851,107660.0,107650.0,0.05587182]
[1750133793813,0.19505851,107660.0,107650.0,0.02329785]
[1750133796442,0.19505851,107660.0,107650.0,0.20908512]
[1750133796678,0.19505851,107660.0,107650.0,0.21837448]
[1750133797686,0.18577001,107660.0,107650.0,0.21837448]
[1750133797910,0.18867281,107660.0,107650.0,0.02329785]
[1750133798093,0.18577001,107660.0,107650.0,0.03258721]
[1750133799017,0.18577001,107660.0,107650.0,0.23756095]
[1750133802234,0.18576748,107670.0,107660.0,0.21787001]
[1750133802484,0.4933,107680.0,107670.0,0.20432742]
[1750133802710,0.0278592,107680.0,107670.0,0.44978819]
[1750133803164,0.0278592,107680.0,107670.0,0.60254819]
[1750133803632,0.21359471,107680.0,107670.0,0.44050116]
[1750133803851,0.03714588,107680.0,107670.0,0.60254828]
[1750133804068,0.03714588,107680.0,107670.0,0.61183531]
[1750133804069,0.0185726,107680.0,107670.0,0.61183531]
[1750133804735,0.02785911,107680.0,107670.0,0.61183531]
[1750133804962,0.03085911,107680.0,107670.0,0.61183531]
[1750133805181,0.02885911,107680.0,107670.0,0.61183531]
[1750133805375,0.02985911,107680.0,107670.0,0.61183531]
[1750133806843,0.01128617,107680.0,107670.0,0.61183531]
[1750133807080,0.02985902,107680.0,107670.0,0.61183531]
[1750133807322,0.02985911,107680.0,107670.0,0.61183531]
[1750133807780,0.02885902,107680.0,107670.0,0.61183531]
[1750133807989,0.02785902,107680.0,107670.0,0.61183531]
[1750133808231,0.19500417,107690.0,107670.0,0.60354811]
[1750133808453,0.01857104,107690.0,107680.0,0.45865461]
[1750133808684,0.02785608,107690.0,107680.0,0.45865461]
[1750133808909,0.03714182,107690.0,107680.0,0.45865461]
[1750133809133,0.02785608,107690.0,107680.0,0.45865461]
[1750133809347,0.03714173,107690.0,107680.0,0.45865461]
[1750133809559,0.02885608,107690.0,107680.0,0.45865461]
[1750133809778,0.02985608,107690.0,107680.0,0.45865461]
[1750133810630,0.03914173,107690.0,107680.0,0.45865461]
[1750133811270,0.03914173,107690.0,107680.0,0.2443947]
[1750133811494,0.04742755,107690.0,107680.0,0.61121461]
[1750133811924,0.04842755,107690.0,107680.0,0.61121461]
[1750133813595,0.03914173,107690.0,107680.0,0.61121461]
[1750133813827,0.03914182,107690.0,107680.0,0.61121461]
[1750133814042,0.04842764,107690.0,107680.0,0.61121461]
[1750133814695,0.02985608,107690.0,107680.0,0.61121461]
[1750133814903,0.04842773,107690.0,107680.0,0.61121461]
[1750133816755,0.03914182,107690.0,107680.0,0.61121461]
[1750133817181,0.04842764,107690.0,107680.0,0.61121461]
[1750133817382,0.04842842,107690.0,107680.0,0.60192844]
[1750133817865,0.22486129,107690.0,107680.0,0.60192844]
[1750133819664,0.03914303,107690.0,107680.0,0.61121461]
[1750133819888,0.002,107690.0,107680.0,0.63121461]
[1750133820093,0.02985591,107690.0,107680.0,0.63121461]
[1750133820339,0.02985591,107690.0,107680.0,0.64575546]
[1750133820340,0.002,107690.0,107680.0,0.64575546]
[1750133820525,0.002,107690.0,107680.0,0.74199722]
[1750133820736,0.002,107690.0,107680.0,0.74191722]
[1750133821155,0.001,107690.0,107680.0,0.74191722]